bitfinex/quotes_SOLUSD_20251204
["timestamp","ask_amount","ask_price","bid_price","bid_amount"]
[1764815251734,10.8285065,145.63,145.59,7.57819419]
[1764815252030,4.66177252,145.63,145.59,7.57819419]
[1764815252440,24.0302094,145.65,145.59,7.57819419]
[1764815252441,4.66177252,145.62,145.59,7.57819419]
[1764815252736,0.7,145.62,145.59,7.57819419]
[1764815253615,6.86658898,145.64,145.59,10.82996671]
[1764815253816,0.7,145.63,145.6,0.71]
[1764815254221,4.66177252,145.63,145.6,0.71]
[1764815255333,4.66177252,145.62,145.58,14.48891137]
[1764815255763,0.7,145.62,145.59,7.57860317]
[1764815256237,0.7,145.62,145.58,18.4506615]
[1764815256442,0.7,145.62,145.58,19.1606615]
[1764815256743,4.66177252,145.62,145.57,14.64316124]
[1764815256919,4.66177252,145.62,145.49,109.36475994]
[1764815256920,3.96177252,145.58,145.53,11.54311058]
[1764815257236,3.96177252,145.58,145.53,19.16311058]
[1764815257435,0.7,145.57,145.53,19.16311058]
[1764815257737,4.66177252,145.57,145.53,15.20133806]
[1764815258452,0.7,145.57,145.54,6.87094896]
[1764815258738,4.66177252,145.59,145.55,6.87047763]
[1764815258933,10.83056571,145.59,145.54,4.67177252]
[1764815259236,10.83056571,145.59,145.55,0.71]
[1764815259533,4.63177252,145.58,145.55,0.71]
[1764815259935,3.96177252,145.58,145.54,3.96177252]
[1764815260135,10.83103723,145.58,145.54,7.54093419]
[1764815260347,0.67,145.57,145.54,7.54093419]
[1764815260543,6.86877109,145.59,145.55,0.67]
[1764815260842,4.63177252,145.58,145.55,0.67]
[1764815261513,3.96177252,145.56,145.53,7.62]
[1764815261914,0.67,145.55,145.53,7.62]
[1764815262520,4.63177252,145.55,145.53,7.62]
[1764815264739,0.68,145.57,145.53,14.49101016]
[1764815264939,4.64177252,145.57,145.53,15.15101016]
[1764815265118,11.51143279,145.57,145.53,15.15101016]
[1764815265318,4.64177252,145.56,145.53,7.62]
[1764815265843,0.68,145.55,145.53,7.62]
[1764815267043,10.83182292,145.56,145.53,7.62]
[1764815267238,0.68,145.55,145.53,7.62]
[1764815267434,4.64177252,145.55,145.52,6.87175043]
[1764815267635,3.96177252,145.54,145.51,7.62]
[1764815267842,4.64177252,145.54,145.51,8.28]
[1764815268140,4.64177252,145.54,145.51,7.62]
[1764815268643,6.8700504,145.56,145.52,0.66]
[1764815268644,10.83182292,145.56,145.52,0.66]
[1764815269142,10.83182292,145.56,145.52,7.53168428]
[1764815269342,11.51182292,145.56,145.52,7.53168428]
[1764815269524,0.68,145.55,145.52,7.53168428]
[1764815269721,4.64177252,145.55,145.52,0.66]
[1764815270041,3.96177252,145.54,145.51,7.62]
[1764815270241,4.64177252,145.55,145.52,0.66]
[1764815270429,3.96177252,145.55,145.52,0.66]
[1764815270632,3.96177252,145.56,145.53,6.87143544]
[1764815270821,3.96177252,145.56,145.51,7.62]
[1764815270822,3.96177252,145.54,145.51,7.62]
[1764815271147,3.96177252,145.53,145.51,7.62]
[1764815271825,4.64177252,145.53,145.51,7.62]
[1764815272937,3.96177252,145.53,145.51,7.62]
[1764815274264,0.68,145.52,145.51,7.62]
[1764815274752,0.68,145.52,145.49,14.49317213]
[1764815274753,4.64177252,145.52,145.49,14.49317213]
[1764815275045,3.96177252,145.53,145.5,7.53281499]
[1764815275234,4.64177252,145.53,145.5,7.53281499]
[1764815276630,4.64177252,145.53,145.5,6.87281499]
[1764815277034,4.64177252,145.53,145.5,7.53281499]
[1764815278449,3.96177252,145.53,145.51,0.66]
[1764815278637,3.96177252,145.54,145.51,0.66]
[1764815278837,4.64177252,145.54,145.51,0.66]
[1764815279027,0.68,145.53,145.5,6.87281499]
[1764815279229,3.96177252,145.55,145.51,0.66]
[1764815279435,3.96177252,145.56,145.52,7.62]
[1764815279842,4.64177252,145.56,145.53,0.66]
[1764815280433,2.53855899,145.57,145.53,7.53116252]
[1764815280752,0.68,145.57,145.53,7.53116252]
[1764815280954,3.21855899,145.57,145.54,0.66]
[1764815281354,3.21855899,145.57,145.53,6.87116252]
[1764815281534,3.21855899,145.57,145.53,7.53116252]
[1764815282352,3.21855899,145.57,145.53,0.66]
[1764815282353,3.21855899,145.56,145.53,0.66]
[1764815282657,7.54961516,145.57,145.52,7.62]
[1764815282841,10.08776572,145.58,145.54,0.66]
[1764815283663,10.08818555,145.57,145.54,0.66]
[1764815284629,10.08818555,145.57,145.53,6.87110165]
[1764815284833,10.08818555,145.57,145.53,7.53110165]
[1764815285053,2.53855899,145.55,145.52,7.62]
[1764815285247,3.21855899,145.56,145.52,7.62]
[1764815285440,3.21855899,145.55,145.52,7.62]
[1764815285969,0.68,145.54,145.52,7.62]
[1764815287357,9.40948279,145.55,145.52,8.28]
[1764815287532,9.40875811,145.56,145.53,0.66]
[1764815288052,2.53855899,145.56,145.53,0.66]
[1764815288269,3.21855899,145.56,145.53,0.66]
[1764815288669,2.53855899,145.56,145.53,0.66]
[1764815288960,9.40823666,145.57,145.53,0.66]
[1764815289159,10.08823666,145.57,145.53,7.531387]
[1764815289864,10.08823666,145.57,145.54,0.66]
[1764815290858,3.21855899,145.63,145.56,2.53855899]
[1764815291067,16.988864,145.62,145.58,2.53855899]
[1764815291252,16.988864,145.62,145.58,10.15855899]
[1764815291564,16.988864,145.62,145.58,10.81855899]
[1764815291764,23.85620219,145.62,145.58,17.68760621]
[1764815293468,26.39476118,145.62,145.58,15.14904722]
[1764815294346,26.39476118,145.62,145.58,17.68760621]
[1764815298780,0.69,145.61,145.58,8.28]
[1764815299142,2.53855899,145.6,145.56,17.55128021]
[1764815299473,2.53855899,145.6,145.57,7.62]
[1764815299648,0.69,145.59,145.57,7.62]
[1764815300275,9.40673403,145.6,145.57,7.62]
[1764815300679,10.09673403,145.6,145.57,8.34]
[1764815300853,7.55817504,145.6,145.57,8.34]
[1764815302068,16.308864,145.62,145.58,3.25855899]
[1764815302261,3.22855899,145.63,145.59,2.53855899]
[1764815302464,31.87609588,145.63,145.57,15.20945745]
[1764815302673,7.8424011,145.62,145.57,10.87855899]
[1764815303180,0.69,145.61,145.58,0.72]
[1764815303564,0.69,145.61,145.57,17.02792342]
[1764815303565,3.22855899,145.61,145.57,14.48936443]
[1764815303878,3.22855899,145.61,145.58,0.72]
[1764815304079,3.22855899,145.6,145.57,7.62]
[1764815304379,10.0969598,145.6,145.57,7.62]
[1764815304550,10.0969598,145.6,145.57,8.34]
[1764815304750,7.55840081,145.6,145.57,8.34]
[1764815308075,0.69,145.59,145.57,7.62]
[1764815308381,3.22855899,145.59,145.57,7.62]
[1764815308675,16.308864,145.56,145.5,0.72]
[1764815308859,2.53855899,145.52,145.48,7.62]
[1764815309058,2.53855899,145.51,145.48,7.62]
[1764815309677,3.22855899,145.5,145.48,7.62]
[1764815310167,2.53855899,145.5,145.48,7.62]
[1764815310567,7.56255802,145.51,145.48,7.62]
[1764815310768,10.10111701,145.51,145.48,8.34]
[1764815310974,10.10111701,145.51,145.48,7.62]
[1764815311553,3.22855899,145.5,145.48,7.62]
[1764815312868,10.10162523,145.5,145.48,7.62]
[1764815314277,7.56306624,145.5,145.48,7.62]
[1764815314481,2.53855899,145.49,145.48,7.62]
[1764815315375,2.53855899,145.5,145.48,7.62]
[1764815315580,10.10099384,145.51,145.48,7.62]
[1764815315791,2.53855899,145.51,145.48,7.62]
[1764815315962,2.53855899,145.51,145.48,8.34]
[1764815316162,3.22855899,145.51,145.48,8.34]
[1764815316590,2.53855899,145.51,145.48,8.34]
[1764815316772,3.22855899,145.5,145.47,0.2]
[1764815316967,2.53855899,145.49,145.47,0.2]
[1764815317291,2.53855899,145.48,145.47,0.2]
[1764815317477,3.22855899,145.48,145.47,0.2]
[1764815318468,10.10235607,145.48,145.47,0.2]
[1764815321775,2.53855899,145.49,145.47,0.85]
[1764815322485,2.53855899,145.49,145.47,0.2]
[1764815323089,10.13202162,145.49,145.47,0.2]
[1764815323321,2.53855899,145.48,145.47,0.2]
[1764815325778,10.13235607,145.48,145.47,0.2]
[1764815327000,18.94230099,145.48,145.47,0.2]
[1764815327679,29.09653695,145.48,145.47,1e-08]
[1764815328686,18.94230099,145.48,145.47,1e-08]
[1764815329407,29.09653695,145.48,145.47,1e-08]
[1764815329592,50.05412328,145.48,145.47,1e-08]
[1764815329985,39.89988732,145.48,145.47,1e-08]
[1764815330492,39.89988732,145.48,145.46,0.2]
[1764815330493,29.09653695,145.48,145.46,0.2]
[1764815330692,13.41279495,145.47,145.46,0.2]
[1764815331385,12.06850391,145.47,145.46,0.2]
[1764815332685,29.09700947,145.47,145.46,0.2]
[1764815336986,29.09700947,145.47,145.4,8.52]
[1764815336987,8.80994492,145.43,145.4,7.82]
[1764815337309,2.53855899,145.41,145.4,0.2]
[1764815338109,12.06850391,145.41,145.4,0.2]
[1764815338996,18.94561002,145.41,145.4,0.2]
[1764815339612,10.1356651,145.41,145.4,0.2]
[1764815340801,9.4156651,145.41,145.4,0.2]
[1764815340995,10.1356651,145.41,145.37,0.2]
[1764815341193,2.53855899,145.4,145.37,0.2]
[1764815342532,10.85252265,145.41,145.37,7.07891328]
[1764815342718,3.97541654,145.41,145.38,6.87831568]
[1764815343094,3.97541654,145.41,145.39,0.7]
[1764815343394,10.8525791,145.41,145.39,0.7]
[1764815343728,10.8525791,145.41,145.37,7.77881205]
[1764815344024,10.8525791,145.41,145.38,0.7]
[1764815344242,3.97541654,145.41,145.38,0.7]
[1764815345096,3.97541654,145.41,145.38,7.57828127]
[1764815345515,3.97541654,145.41,145.39,0.7]
[1764815345712,3.97541654,145.41,145.38,6.87828127]
[1764815345894,3.97541654,145.41,145.39,0.7]
[1764815347216,27.88092241,145.42,145.39,0.7]
[1764815347412,7.59664187,145.42,145.39,0.7]
[1764815347606,3.97541654,145.42,145.39,7.57797869]
[1764815348015,3.97541654,145.42,145.4,0.7]
[1764815348622,10.85177607,145.43,145.4,0.7]
[1764815350908,6.87526967,145.45,145.4,11.55291905]
[1764815351117,10.85068621,145.45,145.4,11.55291905]
[1764815351309,10.85068621,145.45,145.41,0.7]
[1764815351518,10.85068621,145.45,145.41,7.57707815]
[1764815352224,10.85068621,145.45,145.42,0.7]
[1764815354624,11.54068621,145.45,145.42,0.7]
[1764815358438,7.56526967,145.45,145.42,0.7]
[1764815358628,11.54068621,145.45,145.42,0.7]
[1764815365353,3.97541654,145.46,145.42,7.57641146]
[1764815365646,7.56458009,145.47,145.42,7.57641146]
[1764815365647,11.53999663,145.47,145.42,7.57641146]
[1764815365944,11.53999663,145.47,145.43,8.32]
[1764815366440,11.53999663,145.47,145.44,0.7]
[1764815370230,3.97541654,145.46,145.43,8.32]
[1764815370441,8.60155669,145.46,145.44,0.7]
[1764815370627,3.97541654,145.46,145.44,0.7]
[1764815371042,8.60155612,145.46,145.44,0.7]
[1764815371249,3.97541654,145.46,145.44,0.7]
[1764815371449,11.53999663,145.47,145.44,0.7]
[1764815371751,4.62706519,145.46,145.44,0.7]
[1764815371929,11.53999663,145.47,145.44,0.7]
[1764815372250,4.62706519,145.46,145.44,0.7]
[1764815373156,4.62690973,145.46,145.44,0.7]
[1764815373851,11.50165571,145.46,145.43,8.32]
[1764815374650,6.87474598,145.46,145.43,8.32]
[1764815374850,11.5011334,145.46,145.43,8.32]
[1764815376358,6.87474598,145.46,145.43,8.32]
[1764815377354,0.69,145.46,145.43,15.19585361]
[1764815377734,11.54024121,145.46,145.43,8.32]
[1764815378041,7.56482467,145.46,145.43,8.32]
[1764815380356,0.69,145.46,145.43,8.32]
[1764815380651,7.54437429,145.47,145.44,0.67]
[1764815381456,12.16853227,145.47,145.44,0.67]
[1764815381755,16.14394881,145.47,145.44,0.67]
[1764815381960,11.51979083,145.47,145.44,0.67]
[1764815382339,0.72,145.46,145.44,0.67]
[1764815382543,0.72,145.46,145.43,15.15607412]
[1764815384459,0.72,145.46,145.43,8.28]
[1764815390357,0.72,145.46,145.43,15.1561549]
[1764815391275,4.69541654,145.46,145.43,7.62]
[1764815391565,7.59486766,145.46,145.43,8.28]
[1764815398281,7.5943971,145.47,145.44,0.66]
[1764815398678,0.72,145.46,145.43,15.15604884]
[1764815398870,0.72,145.49,145.45,4.63541654]
[1764815399185,5.35092402,145.48,145.46,7.62]
[1764815399480,4.63092402,145.47,145.46,7.62]
[1764815399779,0.72,145.5,145.46,11.59541654]
[1764815399980,4.63067562,145.49,145.46,11.59541654]
[1764815400170,4.63067562,145.48,145.46,19.13015545]
[1764815400371,7.59289376,145.5,145.47,0.66]
[1764815400576,4.63102299,145.49,145.47,0.66]
[1764815400888,4.63102299,145.48,145.47,0.66]
[1764815401265,4.63102299,145.48,145.46,18.47015545]
[1764815401466,0.72,145.53,145.47,4.63541654]
[1764815401783,4.62998087,145.52,145.49,3.97541654]
[1764815402076,0.72,145.52,145.5,7.62]
[1764815402280,4.69541654,145.51,145.47,14.65680526]
[1764815402463,7.16836203,145.5,145.48,7.62]
[1764815402787,7.88836203,145.49,145.46,7.62]
[1764815402970,2.54016079,145.49,145.46,7.62]
[1764815403175,0.72,145.48,145.45,6.87506836]
[1764815403480,3.26016079,145.48,145.46,7.62]
[1764815403662,7.16917247,145.47,145.44,7.62]
[1764815403860,2.54016079,145.46,145.44,7.62]
[1764815404061,3.26016079,145.46,145.44,7.62]
[1764815405270,3.26016079,145.47,145.44,7.62]
[1764815406886,3.26016079,145.47,145.44,14.4954981]
[1764815407589,0.72,145.47,145.44,14.4954981]
[1764815407760,3.26016079,145.47,145.44,14.4954981]
[1764815408167,0.72,145.49,145.45,0.66]
[1764815408373,4.62999138,145.48,145.45,0.66]
[1764815408573,0.72,145.48,145.45,0.66]
[1764815408774,0.72,145.48,145.44,15.1554981]
[1764815409985,3.26016079,145.48,145.44,15.1554981]
[1764815411267,0.72,145.48,145.44,15.1554981]
[1764815411580,0.72,145.48,145.45,0.66]
[1764815412391,10.13418721,145.48,145.44,7.62]
[1764815412598,4.63078868,145.47,145.44,8.34]
[1764815412780,0.72,145.47,145.44,15.21561963]
[1764815414987,3.26016079,145.48,145.44,15.21561963]
[1764815419199,0.72,145.48,145.44,15.21561963]
[1764815419384,3.26016079,145.48,145.45,0.72]
[1764815419798,0.72,145.48,145.45,0.72]
[1764815420495,2.54016079,145.49,145.45,0.72]
[1764815420790,2.54016079,145.5,145.45,0.72]
[1764815421000,5.35065748,145.49,145.45,0.72]
[1764815421301,0.72,145.49,145.46,6.87474219]
[1764815421473,0.72,145.49,145.47,7.6]
[1764815422087,3.26016079,145.49,145.47,7.6]
[1764815422593,0.72,145.48,145.47,7.6]
[1764815425380,14.7645221,145.48,145.42,6.87630389]
[1764815425603,2.54016079,145.46,145.43,7.6]
[1764815426099,0.72,145.45,145.43,7.6]
[1764815427198,3.26016079,145.45,145.43,7.6]
[1764815427607,0.72,145.44,145.43,7.6]
[1764815429202,3.26016079,145.44,145.39,26.99025272]
[1764815429498,3.26016079,145.44,145.39,41.46825277]
[1764815429795,3.26016079,145.44,145.4,0.72]
[1764815430788,2.54016079,145.44,145.39,41.46825277]
[1764815430982,0.72,145.43,145.39,42.18825277]
[1764815431597,0.72,145.43,145.4,0.72]
[1764815432234,3.26016079,145.43,145.4,0.72]
[1764815432435,3.26016079,145.43,145.39,42.18825277]
[1764815433339,0.72,145.42,145.39,42.18825277]
[1764815433515,0.72,145.42,145.39,41.46825277]
[1764815433909,3.26016079,145.42,145.39,18.28138872]
[1764815434104,2.54016079,145.41,145.39,7.6]
[1764815434316,3.26016079,145.41,145.39,7.6]
[1764815434511,2.54016079,145.41,145.39,7.6]
[1764815434728,0.72,145.4,145.39,7.6]
[1764815437036,3.26016079,145.4,145.39,7.6]
[1764815438319,10.13773988,145.4,145.39,7.6]
[1764815439118,3.26016079,145.4,145.37,0.2]
[1764815439314,3.26016079,145.4,145.37,0.92]
[1764815439516,16.308864,145.44,145.37,0.92]
[1764815439746,0.68,145.44,145.39,6.87799248]
[1764815440041,7.83991311,145.46,145.4,20.82154951]
[1764815440358,3.22016079,145.46,145.4,21.54154951]
[1764815440639,3.22016079,145.46,145.41,0.72]
[1764815440836,12.17415627,145.46,145.41,7.59685523]
[1764815441145,3.22016079,145.45,145.42,0.72]
[1764815441447,3.22016079,145.45,145.43,7.6]
[1764815441822,3.22016079,145.46,145.43,7.6]
[1764815442328,0.68,145.46,145.43,14.47612446]
[1764815442523,0.68,145.46,145.43,15.16612446]
[1764815442724,10.10407766,145.48,145.44,0.69]
[1764815443340,9.41407766,145.48,145.44,0.69]
[1764815443546,10.10407766,145.48,145.44,0.69]
[1764815443924,7.56391687,145.48,145.44,0.69]
[1764815445936,0.69,145.47,145.44,0.69]
[1764815446134,3.23016079,145.47,145.44,0.69]
[1764815446447,0.69,145.47,145.44,0.69]
[1764815448651,6.87391687,145.48,145.44,0.69]
[1764815448835,10.10407766,145.48,145.44,7.56561751]
[1764815449155,9.41407766,145.48,145.44,0.69]
[1764815449447,10.10407766,145.48,145.44,7.56565808]
[1764815449651,0.69,145.47,145.44,7.56565808]
[1764815450128,0.69,145.47,145.43,14.47604615]
[1764815450452,2.54016079,145.45,145.43,7.6]
[1764815451126,3.23016079,145.46,145.43,7.6]
[1764815451518,0.69,145.46,145.43,8.29]
[1764815451723,5.31015027,145.47,145.44,0.69]
[1764815452152,9.4145362,145.47,145.43,15.16601645]
[1764815452322,0.69,145.46,145.43,8.29]
[1764815452957,0.69,145.46,145.43,7.6]
[1764815453522,7.56502677,145.46,145.43,7.6]
[1764815454147,10.10518756,145.46,145.43,7.6]
[1764815455051,0.69,145.45,145.43,7.6]
[1764815455234,8.80994492,145.43,145.38,17.1822024]
[1764815455428,2.54016079,145.39,145.37,0.2]
[1764815455952,3.23016079,145.39,145.37,0.2]
[1764815456158,3.23016079,145.38,145.37,0.2]
[1764815457423,10.10868603,145.38,145.37,0.2]
[1764815459857,3.23016079,145.38,145.37,0.2]
[1764815460242,10.10868603,145.38,145.37,0.2]
[1764815460846,2.54016079,145.38,145.37,0.2]
[1764815461354,10.10868603,145.38,145.37,0.2]
[1764815461943,2.54016079,145.38,145.37,0.2]
[1764815462142,3.23016079,145.38,145.37,0.2]
[1764815462357,0.69,145.38,145.37,0.2]
[1764815462538,4.66597325,145.38,145.37,0.2]
[1764815462739,11.54449849,145.38,145.37,0.2]
[1764815464843,0.69,145.38,145.37,0.2]
[1764815465046,4.66597325,145.38,145.37,0.2]
[1764815465242,11.54449849,145.38,145.37,0.2]
[1764815466958,7.56852524,145.38,145.37,0.2]
[1764815467156,11.54449849,145.38,145.37,0.2]
[1764815468847,10.85410415,145.39,145.37,0.2]
[1764815469052,4.66597325,145.39,145.37,0.2]
[1764815470038,11.54403624,145.39,145.37,0.2]
[1764815470848,4.66597325,145.38,145.37,0.2]
[1764815471765,13.47591817,145.38,145.37,0.2]
[1764815471960,8.80994492,145.35,145.33,0.2]
[1764815472160,12.78591817,145.34,145.33,0.2]
[1764815472361,13.47591817,145.34,145.33,0.2]
[1764815473165,29.78478217,145.34,145.33,0.2]
[1764815473965,3.97597325,145.34,145.33,0.2]
[1764815474150,11.51639157,145.34,145.33,0.2]
[1764815474471,36.63520049,145.34,145.33,0.2]
[1764815478963,11.51639157,145.34,145.33,0.2]
[1764815479158,10.85639157,145.34,145.33,0.2]
[1764815479358,11.51639157,145.34,145.33,0.2]
[1764815479873,10.85639157,145.34,145.33,0.2]
[1764815480083,0.66,145.35,145.33,0.2]
[1764815480377,3.97597325,145.35,145.33,0.91]
[1764815481871,3.97597325,145.35,145.33,0.2]
[1764815482268,3.97597325,145.34,145.33,0.2]
[1764815482574,7.53958208,145.36,145.33,0.2]
[1764815482871,3.97597325,145.34,145.33,0.2]
[1764815484476,11.51639157,145.34,145.33,0.2]
[1764815485064,20.32633649,145.34,145.33,0.2]
[1764815485377,36.63520049,145.34,145.33,0.2]
[1764815487988,23.18928232,145.34,145.33,0.2]
[1764815488288,40.61117374,145.34,145.31,0.2]
[1764815488467,16.308864,145.29,145.24,0.2]
[1764815488668,3.97597325,145.27,145.24,0.2]
[1764815489180,4.63597325,145.27,145.24,0.2]
[1764815489493,16.11172243,145.27,145.24,0.2]
[1764815494477,24.92166735,145.27,145.24,0.2]
[1764815494786,25.11880892,145.25,145.24,0.2]
[1764815494973,45.26277087,145.25,145.24,0.2]
[1764815495175,45.92277087,145.25,145.24,0.2]
[1764815495874,45.92277087,145.25,145.24,1e-08]
[1764815496076,52.80745245,145.25,145.24,1e-08]
[1764815499185,37.25550595,145.25,145.24,1e-08]
[1764815499387,52.82745245,145.25,145.24,1e-08]
[1764815500486,58.57463196,145.25,145.24,1e-08]
[1764815500688,50.95463196,145.25,145.24,1e-08]
[1764815500877,52.82745245,145.25,145.24,1e-08]
[1764815501466,45.20745245,145.25,145.24,1e-08]
[1764815501667,8.80994492,145.24,145.22,0.2]
[1764815501891,16.308864,145.21,145.2,0.2]
[1764815502067,41.30679762,145.21,145.2,0.2]
[1764815502268,42.00679762,145.21,145.2,0.2]
[1764815502663,48.89337567,145.21,145.2,0.2]
[1764815504004,25.11880892,145.17,145.11,0.2]
[1764815504196,12.78591817,145.12,145.11,0.2]
[1764815504489,8.80994492,145.12,145.11,0.2]
[1764815504673,12.78591817,145.12,145.11,0.2]
[1764815504874,3.97597325,145.12,145.11,0.2]
[1764815505190,3.97597325,145.12,145.11,0.9]
[1764815506266,3.97597325,145.12,145.11,0.2]
[1764815506571,8.80994492,145.13,145.11,0.2]
[1764815506771,3.97597325,145.13,145.11,0.9]
[1764815506994,4.57375092,145.14,145.12,0.7]
[1764815507328,3.97597325,145.14,145.12,0.7]
[1764815509090,3.97597325,145.13,145.12,0.7]
[1764815509502,12.78591817,145.13,145.11,0.2]
[1764815509808,3.97597325,145.12,145.11,0.2]
[1764815510509,12.78591817,145.12,145.11,0.2]
[1764815511038,16.308864,145.13,145.11,0.2]
[1764815511177,3.97597325,145.14,145.11,0.9]
[1764815511376,3.97597325,145.14,145.12,0.7]
[1764815513186,15.69936965,145.15,145.12,0.7]
[1764815513517,3.97597325,145.13,145.12,0.7]
[1764815514388,3.97597325,145.14,145.12,0.7]
[1764815517693,15.69936965,145.15,145.12,0.7]
[1764815518009,3.97597325,145.14,145.12,0.7]
[1764815518187,3.97597325,145.15,145.12,0.7]
[1764815518802,3.97597325,145.14,145.12,0.7]
[1764815519610,3.97597325,145.14,145.12,7.59074944]
[1764815519816,22.01624864,145.21,145.13,4.67597325]
[1764815520104,3.97597325,145.19,145.13,9.77949983]
[1764815520312,3.97597325,145.19,145.14,4.67597325]
[1764815520612,8.54596142,145.19,145.14,4.67597325]
[1764815520815,5.70738464,145.24,145.18,3.97597325]
[1764815520990,4.57003657,145.25,145.21,3.97597325]
[1764815521190,4.57003657,145.24,145.2,3.97597325]
[1764815521510,4.57003657,145.23,145.19,4.67597325]
[1764815521805,4.57003657,145.23,145.2,7.58671176]
[1764815522211,3.97597325,145.21,145.18,0.7]
[1764815522390,4.57003657,145.22,145.19,0.7]
[1764815522585,15.14406888,145.22,145.17,18.16214846]
[1764815522900,10.57403231,145.22,145.18,6.88795637]
[1764815523085,10.57403231,145.22,145.19,0.7]
[1764815523498,4.5745026,145.21,145.19,0.7]
[1764815523695,10.57403231,145.21,145.19,0.7]
[1764815523904,10.57403231,145.22,145.19,0.7]
[1764815524495,15.6418361,145.23,145.19,7.58738445]
[1764815524702,4.57615489,145.22,145.19,7.58738445]
[1764815524898,4.57615489,145.23,145.2,7.53189118]
[1764815525097,11.40804607,145.24,145.2,7.53189118]
[1764815525301,4.57615489,145.24,145.21,0.7]
[1764815525501,4.57615489,145.24,145.21,7.53189118]
[1764815525691,4.57615489,145.25,145.22,6.83189118]
[1764815525891,4.57615489,145.26,145.23,6.88562969]
[1764815526087,4.57615489,145.25,145.23,14.41752087]
[1764815526416,4.57615489,145.27,145.24,15.15189118]
[1764815526604,11.40804607,145.3,145.25,7.53189118]
[1764815526802,11.40804607,145.29,145.25,0.7]
[1764815527002,4.57615489,145.28,145.24,14.45189118]
[1764815527198,4.57615489,145.28,145.25,0.7]
[1764815527399,5.70738464,145.34,145.27,6.83189118]
[1764815527604,6.83189118,145.32,145.28,14.45189118]
[1764815527912,4.5807102,145.31,145.28,21.33497034]
[1764815528091,6.83189118,145.32,145.29,0.7]
[1764815528292,4.5807102,145.31,145.29,0.7]
[1764815528492,11.41260138,145.32,145.29,0.7]
[1764815528818,6.83189118,145.3,145.28,7.62]
[1764815529000,6.83189118,145.29,145.26,0.7]
[1764815529512,6.83189118,145.3,145.26,7.58407339]
[1764815529719,11.41629853,145.3,145.26,0.7]
[1764815529890,18.298721,145.3,145.27,0.7]
[1764815530086,6.83189118,145.29,145.27,0.7]
[1764815530705,6.83189118,145.29,145.25,14.50465588]
[1764815531014,6.83189118,145.28,145.25,7.62]
[1764815531389,6.83189118,145.28,145.25,8.32]
[1764815532433,8.80994492,145.27,145.21,17.21537085]
[1764815532726,6.83189118,145.26,145.23,0.65]
[1764815533108,6.83189118,145.24,145.21,7.62]
[1764815533418,6.83189118,145.24,145.21,0.65]
[1764815533720,11.42585065,145.24,145.21,0.65]
[1764815534023,6.83189118,145.25,145.21,7.53642185]
[1764815534400,11.42576661,145.25,145.22,0.65]
[1764815534921,4.59387543,145.25,145.22,0.65]
[1764815535126,6.83189118,145.25,145.22,0.65]
[1764815535418,6.83189118,145.26,145.22,7.48189118]
[1764815535627,11.42548683,145.26,145.22,0.65]
[1764815535925,11.42548683,145.26,145.23,0.65]
[1764815536296,6.83189118,145.26,145.23,0.65]
[1764815536807,11.42522761,145.26,145.23,0.65]
[1764815537206,6.83189118,145.26,145.23,0.65]
[1764815538022,23.88259332,145.28,145.23,7.53531723]
[1764815538195,11.42486734,145.27,145.23,7.53531723]
[1764815538392,6.83189118,145.27,145.24,0.65]
[1764815539901,7.52189118,145.27,145.24,0.65]
[1764815540917,6.83189118,145.27,145.24,0.65]
[1764815541506,7.52189118,145.27,145.24,0.65]
[1764815542011,7.52189118,145.27,145.23,6.88531723]
[1764815542198,6.83189118,145.24,145.21,8.27]
[1764815542522,6.83189118,145.25,145.21,8.27]
[1764815542712,6.83189118,145.25,145.22,0.65]
[1764815543225,7.52189118,145.25,145.22,0.65]